fUST/lending_fUST_20251018
["ID","MTS","AMOUNT","RATE_DAILY","PERIOD"]
[391771419,1760794238483,-403.76308444,0.00028434,6]
[391771420,1760794238493,-403.76308444,0.00028603,8]
[391771421,1760794238645,-300.0,0.00028657,30]
[391771422,1760794238654,-300.0,0.00028657,30]
[391771423,1760794238664,-300.0,0.00028657,30]
[391771424,1760794238674,-300.0,0.00028657,30]
[391771425,1760794238684,-300.0,0.00028657,30]
[391771426,1760794238694,-300.0,0.00028657,30]
[391771427,1760794238703,-300.0,0.00028657,30]
[391771428,1760794238713,-300.0,0.00028657,30]
[391771429,1760794238723,-300.0,0.00028657,30]
[391771430,1760794238732,-300.0,0.00028657,30]
[391771431,1760794238742,-300.0,0.00028657,30]
[391771432,1760794238751,-300.0,0.00028657,30]
[391771433,1760794238760,-300.0,0.00028657,30]
[391771434,1760794238770,-300.0,0.00028657,30]
[391771435,1760794238779,-300.0,0.00028657,30]
[391771436,1760794238788,-500.0,0.00028771,2]
[391771437,1760794238797,-548.47297064,0.00028771,2]
[391771438,1760794238807,-500.0,0.00028771,2]
[391771439,1760794238817,-403.76308444,0.00028772,10]
[391771440,1760794238826,-403.76308444,0.00028772,10]
[391771441,1760794238835,-403.76308444,0.00028772,10]
[391771442,1760794238844,-403.76308444,0.00028772,10]
[391771443,1760794238857,-160.0,0.000288,7]
[391771444,1760794238867,-240.0,0.00029,7]
[391771445,1760794238877,-600.0,0.00029229,30]
[391771446,1760794238886,-157.0,0.000293,120]
[391771447,1760794238897,-502.55573725,0.0002947,7]
[391771448,1760794238907,-500.0,0.00029678,7]
[391771449,1760794238916,-500.0,0.00029744,7]
[391771450,1760794238927,-256.24122703,0.0002988,2]
[391771451,1760794238936,-442.61244723,0.000299,2]
[391771452,1760794238946,-151.0,0.00029972,2]
[391771453,1760794238955,-151.0,0.00029972,2]
[391771454,1760794238964,-58273.451184,0.0002998,2]
[391771455,1760794238974,-4619.1381112,0.0002998,2]
[391771456,1760794238984,-153.15,0.0002998,3]
[391771457,1760794238994,-765.76,0.0002998,3]
[391771458,1760794239004,-264.72,0.0002998,3]
[391771459,1760794239014,-794.2,0.0002998,3]
[391771460,1760794239023,-87410.176776,0.0002998,2]
[391771461,1760794239033,-6928.7071668,0.0002998,2]
[391771462,1760794239043,-4671.38,0.00029989,2]
[391771463,1760794239052,-100000.0,0.0002999,2]
[391771464,1760794239061,-179.42,0.0002999,24]
[391771465,1760794239071,-87410.176776,0.0002999,2]
[391771466,1760794239080,-6928.7071668,0.0002999,2]
[391771467,1760794239089,-114415.45437297,0.0003,5]
[391771468,1760794239099,-1412.9,0.0003,2]
[391771469,1760794239108,-151.0,0.0003,30]
[391771470,1760794239117,-151.0,0.0003,30]
[391771471,1760794239127,-235.563625,0.0003,30]
[391771472,1760794239137,-151.0,0.0003,30]
[391771473,1760794239147,-151.0,0.0003,30]
[391771474,1760794239156,-151.0,0.0003,30]
[391771475,1760794239165,-151.0,0.0003,30]
[391771476,1760794239175,-151.0,0.0003,30]
[391771477,1760794239184,-19312.07,0.0003,7]
[391771478,1760794239194,-151.0,0.0003,30]
[391771479,1760794239204,-1000.0,0.0003,14]
[391771480,1760794239213,-177.662672,0.0003,30]
[391771481,1760794239222,-1000.0,0.0003,2]
[391771482,1760794239231,-151.0,0.0003,30]
[391771483,1760794239241,-151.0,0.0003,30]
[391771484,1760794239251,-7290.11507159,0.0003,2]
[391771485,1760794239260,-151.0,0.0003,30]
[391771486,1760794239270,-27023.2777824,0.0003,15]
[391771487,1760794239279,-219.623818,0.0003,30]
[391771488,1760794239288,-151.0,0.0003,30]
[391771489,1760794239297,-151.0,0.0003,30]
[391771490,1760794239306,-151.0,0.0003,30]
[391771491,1760794239316,-253.028116,0.0003,30]
[391771492,1760794239325,-301.64994618,0.0003,120]
[391771493,1760794239334,-183.1820543,0.0003,120]
[391771494,1760794239343,-3419.15655011,0.0003,2]
[391771495,1760794239353,-785.81490251,0.0003,60]
[391771496,1760794239363,-5930.57785028,0.0003,2]
[391771497,1760794239372,-200.23333222,0.0003,2]
[391771498,1760794239381,-151.0,0.0003,30]
[391771499,1760794239390,-151.0,0.0003,30]
[391771500,1760794239399,-489.817604,0.0003,30]
[391771501,1760794239408,-489.817604,0.0003,30]
[391771502,1760794239418,-160.0,0.00030011,2]
[391771503,1760794239428,-500.0,0.00030073,5]
[391771504,1760794239437,-500.0,0.00030073,5]
[391771505,1760794239446,-500.0,0.00030073,5]
[391771506,1760794239456,-112828.20400821,0.000301,3]
[391771507,1760794239464,-151.0,0.000301,30]
[391771508,1760794239473,-489.817604,0.000301,30]
[391771509,1760794239482,-489.817604,0.000301,30]
[391771510,1760794239490,-353.15870472,0.0003012,7]
[391771511,1760794239498,-285.48736586,0.0003013,2]
[391771512,1760794239506,-1075.365377,0.00030137,120]
[391771513,1760794239515,-271.88742116,0.0003015,120]
[391771514,1760794239524,-670.4140214,0.0003022,2]
[391771515,1760794239533,-420.0,0.00030229,2]
[391771516,1760794239542,-1000.0,0.00030368,4]
[391771517,1760794239551,-200.0,0.000305,120]
[391771518,1760794239559,-260.0,0.00030559,2]
[391771519,1760794239568,-1000.0,0.00030621,5]
[391771520,1760794239576,-500.0,0.00030621,5]
[391771521,1760794239584,-1000.0,0.00030621,5]
[391771522,1760794239593,-150.0,0.0003098,2]
[391771523,1760794239603,-303.49061817,0.0003099,2]
[391771524,1760794239617,-982.0,0.00030991,2]
[391771525,1760794239626,-2162.0,0.00030991,2]
[391771526,1760794239636,-631.0,0.00030991,2]
[391771527,1760794239645,-411.0,0.00030991,2]
[391771528,1760794239655,-1224.63,0.00031,2]
[391771529,1760794239664,-151.0,0.00031,7]
[391771530,1760794239674,-151.0,0.00031,30]
[391771531,1760794239684,-151.0,0.00031,30]
[391771532,1760794239693,-151.0,0.00031,30]
[391771533,1760794239703,-151.0,0.00031,30]
[391771534,1760794239713,-175.29422194,0.00031,30]
[391771535,1760794239723,-466.70919319,0.00031074,2]
[391771536,1760794239732,-360.0,0.00031107,2]
[391771537,1760794239742,-1500.0,0.00031168,5]
[391771538,1760794239753,-1500.0,0.00031168,5]
[391771539,1760794239763,-1224.63,0.00031174,2]
[391771540,1760794239772,-159.97,0.00031218,15]
[391771541,1760794239782,-156.88,0.00031218,15]
[391771542,1760794239791,-543.25,0.00031218,15]
[391771543,1760794239801,-159.98423559,0.00031318,15]
[391771544,1760794239811,-156.88327755,0.00031318,15]
[391771545,1760794239820,-543.25,0.00031318,15]
[391771546,1760794239829,-1224.63,0.00031348,2]
[391771547,1760794239838,-29136.725592,0.00031349,2]
[391771548,1760794239849,-2309.5690556,0.00031349,2]
[391771549,1760794239863,-529.44,0.0003135,3]
[391771550,1760794239872,-4671.38,0.00031359,4]
[391771551,1760794239881,-543.25,0.00031418,15]
[391771552,1760794239890,-543.25,0.00031518,15]
[391771553,1760794239900,-543.25,0.00031618,15]
[391771554,1760794239910,-460.0,0.00031655,2]
[391771555,1760794239919,-2000.0,0.00031716,5]
[391771556,1760794239929,-2000.0,0.00031716,5]
[391771557,1760794239938,-543.25,0.00031718,15]
[391771558,1760794239949,-160.0,0.00031765,3]
[391771559,1760794239959,-151.0,0.000318,17]
[391771560,1760794239969,-151.0,0.000318,11]
[391771562,1760794239979,-256.24122701,0.00031803,2]
[391771563,1760794239988,-543.25,0.00031818,15]
[391771564,1760794239997,-442.61244721,0.00031879,2]
[391771565,1760794240007,-19312.07,0.000319,7]
[391771566,1760794240017,-543.25,0.00031918,15]
[391771567,1760794240026,-150.0,0.00031973,5]
[391771568,1760794240035,-150.0,0.00031973,5]
[391771569,1760794240044,-11547.845278,0.0003198,2]
[391771570,1760794240053,-151.0,0.0003199,30]
[391771571,1760794240063,-151.0,0.0003199,30]
[391771573,1760794240072,-151.0,0.0003199,30]
[391771575,1760794240081,-151.0,0.0003199,30]
[391771576,1760794240091,-151.0,0.0003199,30]
[391771578,1760794240100,-151.0,0.0003199,30]
[391771579,1760794240110,-151.0,0.0003199,30]
[391771580,1760794240119,-13857.4143336,0.0003199,2]
[391771581,1760794240128,-301.9999992,0.0003199,30]
[391771582,1760794240137,-151.0,0.0003199,30]
[391771583,1760794240147,-151.0,0.0003199,30]
[391771584,1760794240156,-151.0,0.0003199,30]
[391771585,1760794240165,-151.0,0.0003199,30]
[391771586,1760794240174,-191.83,0.00031999,2]
[391771587,1760794240184,-191.83,0.00031999,2]
[391771588,1760794240193,-452241.65,0.00032,3]
[391771589,1760794240204,-151.0,0.00032,30]
[391771591,1760794240213,-203.561,0.00032,7]
[391771592,1760794240223,-151.0,0.00032,30]
[391771593,1760794240232,-151.0,0.00032,30]
[391771594,1760794240242,-151.0,0.00032,30]
[391771595,1760794240251,-3167.1,0.00032,2]
[391771596,1760794240261,-262.832609,0.00032,30]
[391771598,1760794240270,-151.0,0.00032,30]
[391771600,1760794240279,-157.0,0.00032,120]
[391771601,1760794240288,-151.0,0.00032,30]
[391771603,1760794240297,-151.0,0.00032,30]
[391771605,1760794240307,-151.0,0.00032,30]
[391771607,1760794240317,-402.78104431,0.00032,3]
[391771609,1760794240327,-489.817604,0.00032,30]
[391771611,1760794240336,-489.817604,0.00032,30]
[391771613,1760794240345,-543.25,0.00032018,15]
[391771615,1760794240355,-500.0,0.00032042,7]
[391771617,1760794240364,-543.25,0.00032118,15]
[391771619,1760794240373,-720.0,0.00032152,30]
[391771621,1760794240382,-392.5260468,0.00032159,30]
[391771623,1760794240392,-392.5260468,0.00032159,30]
[391771625,1760794240401,-364.0918658,0.00032183,30]
[391771627,1760794240410,-200.0,0.000322,120]
[391771629,1760794240418,-560.0,0.00032203,2]
[391771631,1760794240427,-543.25,0.00032218,15]
[391771633,1760794240437,-2500.0,0.00032264,5]
[391771635,1760794240446,-2500.0,0.00032264,5]
[391771638,1760794240467,-543.25,0.00032318,15]
[391771640,1760794240477,-840.07654773,0.00032326,2]
[391771642,1760794240486,-168.0,0.00032343,2]
[391771644,1760794240496,-543.25,0.00032418,15]
[391771646,1760794240505,-168.0,0.0003248,2]
[391771648,1760794240514,-543.25,0.00032518,15]
[391771650,1760794240523,-250.0,0.00032521,5]
[391771652,1760794240532,-250.0,0.00032521,5]
[391771654,1760794240542,-600.0,0.00032611,2]
[391771655,1760794240551,-543.25,0.00032618,15]
[391771656,1760794240561,-587.0,0.00032648,2]
[391771657,1760794240571,-543.25,0.00032718,15]
[391771658,1760794240580,-152.960522,0.0003272,3]
[391771659,1760794240590,-4671.38,0.00032729,6]
[391771660,1760794240599,-660.0,0.00032751,2]
[391771661,1760794240609,-3000.0,0.00032812,5]
[391771662,1760794240618,-3000.0,0.00032812,5]
[391771663,1760794240627,-543.25,0.00032818,15]
[391771664,1760794240636,-246.20585699,0.00032877,2]
[391771665,1760794240646,-160.0,0.00032915,4]
[391771666,1760794240655,-543.25,0.00032918,60]
[391771667,1760794240664,-600.0,0.00032951,2]
[391771668,1760794240673,-1597.36268119,0.0003297,2]
[391771669,1760794240683,-221.23451577,0.0003297,4]
[391771670,1760794240692,-500.0,0.00032973,5]
[391771671,1760794240702,-181394.12653157,0.00033,5]
[391771672,1760794240711,-3000.0,0.00033,4]
[391771673,1760794240720,-277.113504,0.00033,30]
[391771674,1760794240730,-151.0,0.00033,30]
[391771675,1760794240739,-279.638619,0.00033,30]
[391771676,1760794240749,-151.0,0.00033,30]
[391771677,1760794240758,-150.0,0.00033,10]
[391771678,1760794240767,-151.0,0.00033,30]
[391771679,1760794240776,-1007.94672532,0.00033,2]
[391771680,1760794240785,-151.0,0.00033,30]
[391771681,1760794240794,-151.0,0.00033,30]
[391771682,1760794240804,-151.0,0.00033,30]
[391771683,1760794240813,-489.817604,0.00033,30]
[391771684,1760794240823,-543.25,0.00033018,60]
[391771685,1760794240833,-350.0,0.00033068,5]
[391771686,1760794240842,-350.0,0.00033068,5]
[391771687,1760794240853,-543.25,0.00033118,60]
[391771688,1760794240863,-3167.1,0.000332,14]
[391771689,1760794240873,-543.25,0.00033218,60]
[391771690,1760794240882,-335.10711861,0.00033261,7]
[391771691,1760794240891,-600.0,0.00033291,2]
[391771692,1760794240901,-760.0,0.00033299,2]
[391771693,1760794240911,-19312.07,0.000333,14]
[391771694,1760794240919,-543.25,0.00033318,60]
[391771695,1760794240930,-3500.0,0.0003336,5]
[391771696,1760794240939,-3525.84491105,0.0003336,5]
[391771697,1760794240948,-668.01333338,0.00033415,4]
[391771698,1760794240959,-543.25,0.00033418,60]
[391771699,1760794240968,-1876.9951438,0.0003343,2]
[391771700,1760794240977,-1803.8421633,0.0003343,2]
[391771701,1760794240986,-180.6698698,0.0003343,2]
[391771702,1760794240997,-543.25,0.00033518,60]
[391771703,1760794241006,-1001.62621845,0.00033521,5]
[391771704,1760794241015,-500.0,0.0003356,7]
[391771705,1760794241025,-1491.97594878,0.00033579,2]
[391771706,1760794241035,-295.39883252,0.00033579,2]
[391771707,1760794241044,-531.71789854,0.00033579,2]
[391771708,1760794241054,-945.27626407,0.00033579,2]
[391771709,1760794241063,-619.23915616,0.00033579,2]
[391771710,1760794241072,-1114.63048108,0.00033579,2]
[391771711,1760794241081,-1981.5652997,0.00033579,2]
[391771712,1760794241090,-3096.19578078,0.00033579,2]
[391771713,1760794241100,-4458.52192432,0.00033579,2]
[391771714,1760794241109,-6068.54373033,0.00033579,2]
[391771715,1760794241119,-307.01827292,0.00033579,2]
[391771716,1760794241129,-482.61292169,0.00033579,2]
[391771717,1760794241139,-868.70325905,0.00033579,2]
[391771718,1760794241148,-1544.36134942,0.00033579,2]
[391771719,1760794241158,-2413.06460847,0.00033579,2]
[391771720,1760794241167,-3471.33822317,0.00033579,2]
[391771721,1760794241176,-302.13637244,0.00033616,5]
[391771722,1760794241186,-450.0,0.00033616,5]
[391771723,1760794241195,-543.25,0.00033618,60]
[391771724,1760794241204,-2000.0,0.000337,11]
[391771725,1760794241214,-1500.0,0.000337,13]
[391771726,1760794241224,-543.25,0.00033718,60]
[391771727,1760794241234,-261.09292072,0.00033719,7]
[391771728,1760794241243,-800.0,0.00033725,2]
[391771729,1760794241253,-800.0,0.00033725,2]
[391771730,1760794241262,-256.24122701,0.00033727,2]
[391771731,1760794241272,-800.0,0.00033791,2]
[391771732,1760794241282,-823.77908852,0.00033798,8]
[391771733,1760794241291,-151.76994319,0.00033798,8]
[391771734,1760794241300,-854.2589148,0.00033798,8]
[391771735,1760794241310,-885.86649465,0.00033798,8]
[391771736,1760794241319,-918.64355495,0.00033798,8]
[391771737,1760794241328,-952.63336648,0.00033798,8]
[391771738,1760794241337,-987.88080104,0.00033798,8]
[391771739,1760794241346,-1024.43239068,0.00033798,8]
[391771740,1760794241356,-1062.33638913,0.00033798,8]
[391771741,1760794241365,-1101.64283553,0.00033798,8]
[391771742,1760794241374,-1142.40362045,0.00033798,8]
[391771743,1760794241383,-1184.6725544,0.00033798,8]
[391771744,1760794241392,-1228.50543892,0.00033798,8]
[391771745,1760794241402,-170.51771704,0.00033799,8]
[391771746,1760794241412,-543.25,0.00033818,60]
[391771747,1760794241421,-860.0,0.00033847,2]
[391771748,1760794241430,-442.61244721,0.00033858,2]
[391771749,1760794241450,-896.45707677,0.0003386,2]
[391771750,1760794241460,-5477.8238466,0.00033861,2]
[391771751,1760794241470,-10516.34909447,0.00033864,10]
[391771752,1760794241479,-500.0,0.00033873,5]
[391771753,1760794241488,-800.0,0.00033881,2]
[391771754,1760794241498,-200.0,0.00033886,120]
[391771755,1760794241508,-200.0,0.000339,120]
[391771756,1760794241518,-990.0,0.000339,2]
[391771757,1760794241527,-990.0,0.000339,3]
[391771758,1760794241537,-26280.86291188,0.000339,3]
[391771759,1760794241546,-151.0,0.000339,30]
[391771760,1760794241556,-151.0,0.000339,30]
[391771761,1760794241567,-151.0,0.000339,30]
[391771762,1760794241576,-151.0,0.000339,30]
[391771763,1760794241586,-151.0,0.000339,30]
[391771764,1760794241595,-200.0,0.000339,120]
[391771765,1760794241605,-489.817604,0.000339,30]
[391771766,1760794241615,-4000.0,0.00033908,5]
[391771767,1760794241625,-543.25,0.00033918,60]
[391771769,1760794241635,-706.92,0.0003395,10]
[391771770,1760794241644,-160.0,0.0003395,60]
[391771771,1760794241654,-508.11118757,0.0003395,60]
[391771772,1760794241664,-175.154,0.00033951,2]
[391771773,1760794241674,-10000.0,0.00033958,2]
[391771774,1760794241683,-10000.0,0.00033958,2]
[391771775,1760794241692,-10000.0,0.00033958,2]
[391771776,1760794241702,-10000.0,0.00033958,2]
[391771777,1760794241711,-10000.0,0.00033958,2]
[391771778,1760794241720,-861.0,0.00033958,2]
[391771779,1760794241730,-2464.25586958,0.00033961,7]
[391771780,1760794241739,-22697.3921877,0.00033961,2]
[391771781,1760794241748,-1000.50010409,0.00033961,5]
[391771782,1760794241758,-58500.0,0.00033961,2]
[391771783,1760794241767,-1163.05694429,0.00033961,15]
[391771784,1760794241776,-51811.11858233,0.00033961,2]
[391771785,1760794241786,-1500.0,0.00033961,3]
[391771786,1760794241796,-118720.96330811,0.00033961,20]
[391771787,1760794241805,-2000.0,0.00033961,30]
[391771788,1760794241814,-475.6701749,0.00033961,30]
[391771789,1760794241824,-164.25622358,0.00033961,30]
[391771790,1760794241834,-248.44265289,0.00033961,30]
[391771791,1760794241843,-680.84933739,0.00033961,30]
[391771792,1760794241858,-736.87412277,0.00033961,30]
[391771793,1760794241867,-518.06643398,0.00033961,30]
[391771794,1760794241877,-908.61590984,0.00033961,30]
[391771795,1760794241886,-310.02182986,0.00033961,2]
[391771796,1760794241895,-500.0,0.00033961,30]
[391771797,1760794241905,-500.0,0.00033961,30]
[391771798,1760794241914,-500.0,0.00033961,30]
[391771799,1760794241923,-500.0,0.00033961,30]
[391771800,1760794241935,-500.0,0.00033961,30]
[391771801,1760794241944,-235.11087227,0.00033961,30]
[391771802,1760794241954,-500.0,0.00033961,30]
[391771803,1760794241964,-15000.0,0.00033961,15]
[391771804,1760794241973,-112557.30018214,0.00033961,20]
[391772161,1760794246887,-150.0,0.00025,2]
[391772163,1760794246898,-172.5,0.000256,2]
[391772165,1760794246908,-195.0,0.000262,2]
[391772166,1760794246917,-151.0,0.0003,30]
[391772168,1760794246927,-489.817604,0.0003,30]
[391772170,1760794246940,-489.817604,0.0003,30]
[391772172,1760794246949,-151.0,0.000301,30]
[391772174,1760794246959,-489.817604,0.000301,30]
[391772176,1760794246970,-489.817604,0.000301,30]
[391772178,1760794246979,-151.0,0.00032,30]
[391772180,1760794246988,-489.817604,0.00032,30]
[391772182,1760794246997,-489.817604,0.00032,30]
[391772184,1760794247006,-489.817604,0.00033,30]
[391772186,1760794247016,-489.817604,0.00033,30]
[391772188,1760794247025,-489.817604,0.00033,30]
[391772190,1760794247035,-489.817604,0.000339,30]
[391772192,1760794247044,-489.817604,0.000339,30]
[391772194,1760794247054,-489.81759423,0.000339,30]
[391772196,1760794247063,-3705.51767295,0.00033961,20]
[391772198,1760794247075,-502.0,0.00033961,20]
[391772200,1760794247086,-1066.235961,0.00033961,20]
[391773189,1760794401097,536.916809,0.00013699,2]
[391773190,1760794401322,536.916809,0.00020187,2]
[391773191,1760794424345,154.0,9.3e-07,2]
[391773192,1760794447918,500.0,0.00033948,120]
[391773193,1760794448171,473.60130948,0.00033948,120]
[391773196,1760794507693,1957.856,0.00033948,60]
[391773197,1760794714444,150.0,0.00020434,2]
[391773198,1760794714861,150.0,0.00022291,2]
[391773199,1760794715569,150.0,0.00024149,2]
[391773270,1760795072757,150.0,0.00020061,2]
[391773271,1760795073230,150.0,0.00021884,2]
[391773272,1760795073684,150.0,0.00023708,2]
[391773273,1760795148484,91.80138131,0.00020063,2]
[391773274,1760795148513,58.19861869,0.00020063,2]
[391773275,1760795148979,150.0,0.00021887,2]
[391773276,1760795149431,150.0,0.00023711,2]
[391773278,1760795430482,1981.48748535,0.000242,2]
[391773316,1760795432607,-150.0,0.00024953,2]
[391773318,1760795432618,-172.5,0.00025553,2]
[391773320,1760795432627,-195.0,0.00026153,2]
[391773322,1760795432645,-208.32366949,0.00026676,2]
[391773403,1760795438532,-328.59313951,0.00026676,2]
[391773404,1760795438543,-165.0,0.00026753,2]
[391773405,1760795438553,-179.64071856,0.00027684,2]
[391773406,1760795438563,-160.0,0.00028,30]
[391773407,1760795438572,-150.0,0.00028704,2]
[391773408,1760795438582,-300.0,0.00028941,2]
[391773409,1760795438591,-276.0,0.00028941,2]
[391773410,1760795438601,-982.0,0.00028942,2]
[391773411,1760795438611,-411.0,0.00028942,2]
[391773412,1760795438620,-1762.50305082,0.00028942,2]
[391773413,1760795438633,-399.49694918,0.00028942,2]
[391773414,1760795438642,-631.0,0.00028942,2]
[391773415,1760795438652,-150.0,0.00028942,2]
[391773416,1760795438661,-500.0,0.00028957,7]
[391773417,1760795438671,-163.3823457,0.00029044,2]
[391773418,1760795438680,-300.0,0.0002952,30]
[391773419,1760795438690,-300.0,0.0002952,30]
[391773420,1760795438700,-300.0,0.0002952,30]
[391773421,1760795438710,-300.0,0.0002952,30]
[391773422,1760795438719,-300.0,0.0002952,30]
[391773423,1760795438731,-281.96120685,0.0002952,30]
[391773766,1760795443764,-18.03879315,0.0002952,30]
[391773768,1760795443773,-300.0,0.0002952,30]
[391773771,1760795443782,-300.0,0.0002952,30]
[391773773,1760795443792,-300.0,0.0002952,30]
[391773775,1760795443801,-300.0,0.0002952,30]
[391773777,1760795443810,-300.0,0.0002952,30]
[391773779,1760795443819,-300.0,0.0002952,30]
[391773781,1760795443828,-299.22086844,0.0002952,30]
[391774067,1760795446681,-0.77913156,0.0002952,30]
[391774069,1760795446690,-300.0,0.0002952,30]
[391774071,1760795446700,-300.0,0.0002952,30]
[391774073,1760795446710,-61.12086844,0.00029989,2]
[391775793,1760795485630,742.0,0.000242,2]
[391775794,1760795716750,1957.856,0.00033948,60]
[391775795,1760795780445,150.0,0.00020231,2]
[391775796,1760795780982,150.0,0.0002207,2]
[391775797,1760795781435,150.0,0.00023909,2]
[391775802,1760795858495,150.0,0.00020088,2]
[391775803,1760795858938,150.0,0.00021915,2]
[391775804,1760795859395,150.0,0.00023741,2]
[391775805,1760795873762,198.82,0.00024192,2]
[391775806,1760795879745,310.02183086,0.00033948,60]
[391775807,1760795934697,150.0,0.00020203,2]
[391775808,1760795935194,150.0,0.00022039,2]
[391775809,1760795935667,155.35,0.00023876,2]
[391775810,1760796011370,1957.856,0.00033948,60]
[391775811,1760796011541,150.0,0.0002023,2]
[391775812,1760796012030,150.0,0.00022069,2]
[391775813,1760796012471,160.87,0.00023908,2]
[391775816,1760796084300,150.0,0.00020112,2]
[391775817,1760796084709,150.0,0.0002194,2]
[391775818,1760796085146,166.18,0.00023768,2]
[391775819,1760796159879,150.0,0.00020056,2]
[391775820,1760796160375,150.0,0.0002188,2]
[391775821,1760796160865,150.0,0.00023703,2]
[391775822,1760796216143,858.0,0.00033948,120]
[391775832,1760796238731,150.0,0.00020059,2]
[391775833,1760796239148,150.0,0.00021882,2]
[391775834,1760796239587,150.0,0.00023706,2]
[391775848,1760796275872,10000.0,0.00033948,60]
[391775852,1760796288385,90000.0,0.00033948,60]
[391775853,1760796290025,435.18614214,0.00033948,120]
[391775854,1760796310539,1957.856,0.00033948,60]
[391775855,1760796313387,150.0,0.00020094,2]
[391775856,1760796313866,150.0,0.00021921,2]
[391775857,1760796314288,150.0,0.00023748,2]
[391775863,1760796385744,150.0,0.0002007,2]
[391775864,1760796386238,150.0,0.00021895,2]
[391775865,1760796386694,150.0,0.00023719,2]
[391775866,1760796458459,150.0,0.00020067,2]
[391775867,1760796458884,150.0,0.00021891,2]
[391775868,1760796459471,150.0,0.00023716,2]
[391775913,1760796615703,417.15472785,0.000242,2]
[391775943,1760796631671,-668.13410441,0.00024953,2]
[391775945,1760796631683,-1289.01497575,0.00024953,2]
[391775947,1760796631729,-411.50038702,0.00024953,2]
[391775955,1760796637526,-2631.35053282,0.00024953,2]
[391775956,1760796637536,-418.83449436,0.00024969,2]
[391775957,1760796637549,-488.46954644,0.00024969,2]
[391775958,1760796637559,-150.0,0.00025205,2]
[391775959,1760796637707,-172.5,0.00025805,2]
[391775960,1760796637717,-366.48427673,0.00026283,2]
[391775961,1760796637726,-195.0,0.00026405,2]
[391775962,1760796637735,-1200.0,0.00026574,2]
[391775963,1760796637745,-231.71008763,0.00027005,2]
[391775964,1760796637754,-160.0,0.00027331,2]
[391775965,1760796637763,-160.0,0.00027331,2]
[391775966,1760796637773,-160.0,0.00027377,2]
[391775967,1760796637783,-179.65864857,0.00027684,2]
[391775968,1760796637793,-172.05255229,0.0002797,2]
[391775969,1760796637802,-300.0,0.00027971,30]
[391775970,1760796637811,-300.0,0.00027971,30]
[391775971,1760796637820,-300.0,0.00027971,30]
[391775972,1760796637829,-300.0,0.00027971,30]
[391775973,1760796637838,-300.0,0.00027971,30]
[391775974,1760796637847,-300.0,0.00027971,30]
[391775975,1760796637856,-300.0,0.00027971,30]
[391775976,1760796637865,-300.0,0.00027971,30]
[391775977,1760796637874,-300.0,0.00027971,30]
[391775978,1760796637884,-300.0,0.00027971,30]
[391775979,1760796637893,-300.0,0.00027971,30]
[391775980,1760796637903,-300.0,0.00027971,30]
[391775981,1760796637912,-300.0,0.00027971,30]
[391775982,1760796637922,-300.0,0.00027971,30]
[391775983,1760796637932,-300.0,0.00027971,30]
[391775984,1760796637941,-600.0,0.00028529,30]